fUSD/lending_fUSD_20240606
["ID","MTS","AMOUNT","RATE_DAILY","PERIOD"]
[328632149,1717641043523,-500.0,0.00014,2]
[328632150,1717641043532,-500.0,0.00014,2]
[328632151,1717641043548,-500.0,0.00014,2]
[328632152,1717641043566,-500.0,0.00014,2]
[328632153,1717641043575,-500.0,0.00014,2]
[328632154,1717641043585,-500.0,0.00014,2]
[328632155,1717641043595,-500.0,0.00014,2]
[328632156,1717641043605,-500.0,0.00014,2]
[328632157,1717641043615,-500.0,0.00014,2]
[328632158,1717641043624,-500.0,0.00014,2]
[328632159,1717641043636,-500.0,0.00014,2]
[328632160,1717641043646,-500.0,0.00014,2]
[328632161,1717641043656,-500.0,0.00014,2]
[328632162,1717641043666,-500.0,0.00014,2]
[328632163,1717641043675,-500.0,0.00014,2]
[328632164,1717641043685,-500.0,0.00014,2]
[328632165,1717641043694,-500.0,0.00014,2]
[328632166,1717641043704,-500.0,0.00014,2]
[328632167,1717641043714,-500.0,0.00014,2]
[328632168,1717641043723,-500.0,0.00014,2]
[328632169,1717641043734,-500.0,0.00014,2]
[328632170,1717641043744,-500.0,0.00014,2]
[328632171,1717641043754,-500.0,0.00014,2]
[328632172,1717641043766,-500.0,0.00014,2]
[328632173,1717641043776,-500.0,0.00014,2]
[328632174,1717641043785,-500.0,0.00014,2]
[328632175,1717641043795,-500.0,0.00014,2]
[328632176,1717641043804,-500.0,0.00014,2]
[328632177,1717641043814,-500.0,0.00014,2]
[328632178,1717641043823,-500.0,0.00014,2]
[328632179,1717641043833,-500.0,0.00014,2]
[328632180,1717641043843,-500.0,0.00014,2]
[328632181,1717641043852,-500.0,0.00014,2]
[328632182,1717641043862,-500.0,0.00014,2]
[328632183,1717641043872,-500.0,0.00014,2]
[328632184,1717641043882,-500.0,0.00014,2]
[328632185,1717641043892,-500.0,0.00014,2]
[328632186,1717641043902,-500.0,0.00014,2]
[328632187,1717641043913,-500.0,0.00014,2]
[328632188,1717641043923,-500.0,0.00014,2]
[328632189,1717641043933,-500.0,0.00014,2]
[328632190,1717641043943,-500.0,0.00014,2]
[328632191,1717641043953,-500.0,0.00014,2]
[328632192,1717641043962,-500.0,0.00014,2]
[328632193,1717641043972,-500.0,0.00014,2]
[328632194,1717641043982,-500.0,0.00014,2]
[328632195,1717641043992,-500.0,0.00014,2]
[328632196,1717641044002,-500.0,0.00014,2]
[328632197,1717641044013,-500.0,0.00014,2]
[328632198,1717641044023,-500.0,0.00014,2]
[328632199,1717641044032,-500.0,0.00014,2]
[328632200,1717641044042,-500.0,0.00014,2]
[328632201,1717641044051,-500.0,0.00014,2]
[328632202,1717641044061,-500.0,0.00014,2]
[328632203,1717641044071,-500.0,0.00014,2]
[328632204,1717641044080,-500.0,0.00014,2]
[328632205,1717641044090,-500.0,0.00014,2]
[328632206,1717641044100,-500.0,0.00014,2]
[328632207,1717641044110,-500.0,0.00014,2]
[328632208,1717641044119,-500.0,0.00014,2]
[328632209,1717641044129,-500.0,0.00014,2]
[328632210,1717641044139,-500.0,0.00014,2]
[328632211,1717641044150,-500.0,0.00014,2]
[328632212,1717641044159,-500.0,0.00014,2]
[328632213,1717641044169,-500.0,0.00014,2]
[328632214,1717641044179,-500.0,0.00014,2]
[328632215,1717641044188,-500.0,0.00014,2]
[328632216,1717641044198,-500.0,0.00014,2]
[328632217,1717641044207,-500.0,0.00014,2]
[328632218,1717641044218,-500.0,0.00014,2]
[328632219,1717641044227,-500.0,0.00014,2]
[328632220,1717641044237,-500.0,0.00014,2]
[328632221,1717641044248,-500.0,0.00014,2]
[328632222,1717641044258,-500.0,0.00014,2]
[328632223,1717641044269,-500.0,0.00014,2]
[328632224,1717641044279,-500.0,0.00014,2]
[328632225,1717641044289,-500.0,0.00014,2]
[328632226,1717641044299,-500.0,0.00014,2]
[328632227,1717641044310,-500.0,0.00014,2]
[328632228,1717641044319,-500.0,0.00014,2]
[328632229,1717641044329,-500.0,0.00014,2]
[328632230,1717641044339,-500.0,0.00014,2]
[328632231,1717641044348,-500.0,0.00014,2]
[328632232,1717641044358,-500.0,0.00014,2]
[328632233,1717641044367,-500.0,0.00014,2]
[328632234,1717641044377,-500.0,0.00014,2]
[328632235,1717641044387,-500.0,0.00014,2]
[328632236,1717641044397,-500.0,0.00014,2]
[328632237,1717641044407,-500.0,0.00014,2]
[328632238,1717641044417,-500.0,0.00014,2]
[328632239,1717641044427,-500.0,0.00014,2]
[328632240,1717641044436,-500.0,0.00014,2]
[328632241,1717641044446,-500.0,0.00014,2]
[328632242,1717641044455,-500.0,0.00014,2]
[328632243,1717641044465,-500.0,0.00014,2]
[328632244,1717641044475,-500.0,0.00014,2]
[328632245,1717641044485,-500.0,0.00014,2]
[328632246,1717641044494,-500.0,0.00014,2]
[328632247,1717641044504,-500.0,0.00014,2]
[328632248,1717641044515,-500.0,0.00014,2]
[328632249,1717641044526,-500.0,0.00014,2]
[328632250,1717641044536,-500.0,0.00014,2]
[328632251,1717641044545,-500.0,0.00014,2]
[328632252,1717641044555,-500.0,0.00014,2]
[328632253,1717641044568,-500.0,0.00014,2]
[328632254,1717641044578,-500.0,0.00014,2]
[328632255,1717641044588,-500.0,0.00014,2]
[328632256,1717641044598,-500.0,0.00014,2]
[328632257,1717641044608,-500.0,0.00014,2]
[328632258,1717641044623,-500.0,0.00014,2]
[328632259,1717641044634,-500.0,0.00014,2]
[328632260,1717641044644,-500.0,0.00014,2]
[328632261,1717641044656,-500.0,0.00014,2]
[328632262,1717641044666,-500.0,0.00014,2]
[328632263,1717641044676,-500.0,0.00014,2]
[328632264,1717641044686,-500.0,0.00014,2]
[328632265,1717641044695,-500.0,0.00014,2]
[328632266,1717641044704,-500.0,0.00014,2]
[328632267,1717641044714,-500.0,0.00014,2]
[328632268,1717641044724,-500.0,0.00014,2]
[328632269,1717641044734,-500.0,0.00014,2]
[328632270,1717641044744,-500.0,0.00014,2]
[328632271,1717641044754,-500.0,0.00014,2]
[328632272,1717641044765,-500.0,0.00014,2]
[328632273,1717641044776,-500.0,0.00014,2]
[328632274,1717641044786,-500.0,0.00014,2]
[328632275,1717641044795,-500.0,0.00014,2]
[328632276,1717641044805,-500.0,0.00014,2]
[328632277,1717641044815,-500.0,0.00014,2]
[328632278,1717641044825,-500.0,0.00014,2]
[328632279,1717641044835,-500.0,0.00014,2]
[328632280,1717641044844,-500.0,0.00014,2]
[328632281,1717641044854,-500.0,0.00014,2]
[328632282,1717641044864,-500.0,0.00014,2]
[328632283,1717641044874,-500.0,0.00014,2]
[328632284,1717641044884,-500.0,0.00014,2]
[328632285,1717641044894,-500.0,0.00014,2]
[328632286,1717641044903,-500.0,0.00014,2]
[328632287,1717641044913,-500.0,0.00014,2]
[328632288,1717641044923,-500.0,0.00014,2]
[328632289,1717641044933,-500.0,0.00014,2]
[328632290,1717641044943,-500.0,0.00014,2]
[328632291,1717641044952,-500.0,0.00014,2]
[328632292,1717641044962,-500.0,0.00014,2]
[328632293,1717641044971,-500.0,0.00014,2]
[328632294,1717641044981,-500.0,0.00014,2]
[328632295,1717641044991,-500.0,0.00014,2]
[328632296,1717641045001,-500.0,0.00014,2]
[328632297,1717641045012,-500.0,0.00014,2]
[328632298,1717641045021,-500.0,0.00014,2]
[328632299,1717641045031,-500.0,0.00014,2]
[328632300,1717641045040,-500.0,0.00014,2]
[328632301,1717641045050,-500.0,0.00014,2]
[328632302,1717641045060,-500.0,0.00014,2]
[328632303,1717641045070,-500.0,0.00014,2]
[328632304,1717641045080,-500.0,0.00014,2]
[328632305,1717641045089,-500.0,0.00014,2]
[328632306,1717641045099,-500.0,0.00014,2]
[328632307,1717641045108,-500.0,0.00014,2]
[328632308,1717641045118,-500.0,0.00014,2]
[328632309,1717641045127,-500.0,0.00014,2]
[328632310,1717641045137,-500.0,0.00014,2]
[328632311,1717641045146,-500.0,0.00014,2]
[328632312,1717641045156,-3000.0,0.00014,2]
[328632313,1717641045166,-1096.91,0.00014032,2]
[328632314,1717641045176,-2855.61,0.00014159,2]
[328632315,1717641045185,-520.68,0.0001417,2]
[328632316,1717641045195,-1009.0,0.000142,2]
[328632317,1717641045205,-179.01,0.00014374,2]
[328632318,1717641045215,-304.3,0.00014384,2]
[328632319,1717641045225,-434.14,0.0001439,2]
[328632320,1717641045235,-4712.22,0.00014882,2]
[328632321,1717641045245,-210.0,0.00014957,2]
[328632322,1717641045254,-155.0,0.00015,2]
[328632323,1717641045266,-619.40919627,0.00015,2]
[328632324,1717641045275,-155.0,0.00015,2]
[328632325,1717641045284,-1919.21054222,0.00015,2]
[328632326,1717641045294,-211044.04292242,0.00015,2]
[328632327,1717641045304,-488.0,0.00015,2]
[328632328,1717641045313,-155.26736836,0.00015,2]
[328632329,1717641045323,-9718.06383566,0.00015,2]
[328632330,1717641045333,-151.0,0.00015,2]
[328632331,1717641045343,-151.0,0.00015,2]
[328632332,1717641045352,-151.0,0.00015,2]
[328632333,1717641045362,-151.151484,0.00015,2]
[328632334,1717641045372,-152.748316,0.00015,2]
[328632335,1717641045382,-3000.0,0.0001504,2]
[328632336,1717641045391,-304.3,0.00015068,2]
[328632337,1717641045401,-1000.0,0.00015202,2]
[328632338,1717641045411,-15899.50034273,0.00015355,2]
[328632340,1717641045421,-304.3,0.00015753,2]
[328632341,1717641045432,-178.08,0.00015831,2]
[328632342,1717641045442,-172.31,0.00015889,2]
[328632343,1717641045452,-5657.64,0.00016116,2]
[328632344,1717641045462,-3000.0,0.0001629,2]
[328632345,1717641045471,-1096.91,0.00016296,2]
[328632346,1717641045482,-999.999999,0.00016385,2]
[328632347,1717641045491,-304.3,0.00016438,2]
[328632348,1717641045501,-293.0,0.00016453,2]
[328632349,1717641045512,-1803.93057379,0.000165,2]
[328632350,1717641045522,-166.56017299,0.00016567,2]
[328632351,1717641045531,-179.59,0.00016712,2]
[328632352,1717641045541,-15899.50034273,0.00016809,2]
[328632353,1717641045550,-1000.0,0.00016891,2]
[328632354,1717641045562,-2855.61,0.00016899,2]
[328632355,1717641045573,-162.15887972,0.000169,2]
[328632356,1717641045582,-257.30786208,0.000169,2]
[328632357,1717641045592,-6807.9082069,0.0001726,2]
[328632358,1717641045603,-3000.0,0.0001754,2]
[328632359,1717641045612,-312.98928866,0.000179,2]
[328632360,1717641045622,-649.22707857,0.00018,2]
[328632361,1717641045632,-240.0,0.00018098,2]
[328632362,1717641045644,-1662.69385261,0.000181,2]
[328632363,1717641045655,-15899.50034273,0.00018264,2]
[328632364,1717641045664,-178.08,0.00018444,2]
[328632365,1717641045674,-1096.91,0.0001856,2]
[328632366,1717641045684,-1000.0,0.0001858,2]
[328632367,1717641045694,-3000.0,0.0001879,2]
[328632368,1717641045703,-156.27630119,0.00019,2]
[328632370,1717641045713,-410.5352738,0.00019,2]
[328632372,1717641045722,-500.0,0.00019178,2]
[328632374,1717641045732,-500.0,0.00019178,2]
[328632376,1717641045741,-500.0,0.00019178,2]
[328632378,1717641045751,-500.0,0.00019178,2]
[328632380,1717641045761,-500.0,0.00019178,2]
[328632382,1717641045770,-500.0,0.00019178,2]
[328632384,1717641045780,-313.40364699,0.00019178,2]
[328632386,1717641045790,-500.0,0.00019178,2]
[328632388,1717641045799,-363.83219093,0.00019178,2]
[328632390,1717641045809,-167.95776311,0.00019178,2]
[328632392,1717641045818,-500.0,0.00019178,2]
[328632394,1717641045827,-500.0,0.00019178,2]
[328632396,1717641045839,-500.0,0.00019178,2]
[328632397,1717641045848,-500.0,0.00019178,2]
[328632398,1717641045858,-500.0,0.00019178,2]
[328632399,1717641045868,-500.0,0.00019178,2]
[328632401,1717641045877,-500.0,0.00019178,2]
[328632403,1717641045887,-500.0,0.00019178,2]
[328632405,1717641045896,-500.0,0.00019178,2]
[328632407,1717641045905,-500.0,0.00019178,2]
[328632409,1717641045914,-500.0,0.00019178,2]
[328632411,1717641045924,-500.0,0.00019178,2]
[328632413,1717641045933,-500.0,0.00019178,2]
[328632415,1717641045942,-500.0,0.00019178,2]
[328632417,1717641045951,-500.0,0.00019178,2]
[328632419,1717641045961,-500.0,0.00019178,2]
[328632421,1717641045970,-500.0,0.00019178,2]
[328632423,1717641045979,-500.0,0.00019178,2]
[328632425,1717641045989,-500.0,0.00019178,2]
[328632427,1717641045998,-151.5369101,0.00019178,2]
[328632428,1717641046008,-500.0,0.00019178,2]
[328632430,1717641046018,-275.83474814,0.00019178,2]
[328632432,1717641046027,-531.65945481,0.00019178,2]
[328632434,1717641046037,-500.0,0.00019178,2]
[328632436,1717641046047,-644.46518866,0.00019178,2]
[328632438,1717641046056,-500.0,0.00019178,2]
[328632440,1717641046066,-500.0,0.00019178,2]
[328632442,1717641046075,-500.0,0.00019178,2]
[328632444,1717641046085,-500.0,0.00019178,2]
[328632447,1717641046095,-500.0,0.00019178,2]
[328632465,1717641046254,-500.0,0.00019178,2]
[328632467,1717641046265,-500.0,0.00019178,2]
[328632469,1717641046274,-620.38644202,0.00019178,2]
[328632471,1717641046284,-369.68588797,0.00019178,2]
[328632473,1717641046293,-500.0,0.00019178,2]
[328632475,1717641046302,-500.0,0.00019178,2]
[328632477,1717641046311,-393.96903402,0.00019178,2]
[328632479,1717641046320,-283.88236596,0.00019178,2]
[328632481,1717641046329,-209.91494212,0.00019178,2]
[328632483,1717641046338,-200.0,0.00019178,2]
[328632485,1717641046347,-200.0,0.00019178,2]
[328632487,1717641046356,-200.0,0.00019178,2]
[328632488,1717641046365,-200.0,0.00019178,2]
[328632490,1717641046374,-200.0,0.00019178,2]
[328632492,1717641046383,-200.0,0.00019178,2]
[328632494,1717641046394,-177.0,0.00019178,2]
[328632495,1717641046403,-375.55,0.00019178,2]
[328632496,1717641046412,-5099.21,0.00019178,2]
[328632498,1717641046421,-7769.72750765,0.000192,2]
[328632500,1717641046431,-3890.25994623,0.000192,2]
[328632502,1717641046439,-166.56017299,0.00019233,2]
[328632504,1717641046448,-168.6,0.00019513,2]
[328632506,1717641046457,-469.0,0.0001956,15]
[328632508,1717641046466,-469.0,0.0001957,15]
[328632510,1717641046475,-469.0,0.0001958,15]
[328632512,1717641046484,-2855.61,0.00019639,2]
[328632514,1717641046493,-151.0,0.0001964,2]
[328632516,1717641046502,-151.0,0.0001964,2]
[328632518,1717641046512,-150.5,0.00019688,15]
[328632520,1717641046522,-150.5,0.00019698,15]
[328632522,1717641046531,-150.5,0.00019708,15]
[328632524,1717641046540,-15899.50034273,0.00019718,2]
[328632526,1717641046549,-3314.49958491,0.000199,3]
[328632528,1717641046561,-156.35958664,0.00019998,2]
[328632530,1717641046571,-1783.07421869,0.0002,2]
[328632532,1717641046580,-634.50759008,0.0002,2]
[328632534,1717641046589,-187.97565773,0.0002,2]
[328632536,1717641046599,-155.0,0.0002,2]
[328632538,1717641046608,-863.72156953,0.0002,2]
[328632540,1717641046617,-3748.64166597,0.0002,2]
[328632542,1717641046627,-4891.93757754,0.0002,2]
[328632543,1717641046636,-323.52240057,0.0002,2]
[328632545,1717641046646,-1401.0,0.0002,2]
[328632547,1717641046656,-345.0,0.0002,2]
[328632549,1717641046665,-497.66463293,0.0002,10]
[328632551,1717641046675,-6257.08108063,0.0002,2]
[328632553,1717641046684,-5900.0,0.0002,7]
[328632555,1717641046694,-151.0,0.0002,2]
[328632557,1717641046703,-151.0,0.0002,2]
[328632559,1717641046713,-152.243236,0.0002,2]
[328632561,1717641046722,-150.0,0.0002,2]
[328632563,1717641046731,-150.0,0.0002,2]
[328632565,1717641046740,-500.0,0.0002,2]
[328632567,1717641046749,-500.0,0.0002,2]
[328632569,1717641046758,-500.0,0.0002,2]
[328632571,1717641046769,-500.0,0.0002,2]
[328632573,1717641046778,-500.0,0.0002,2]
[328632575,1717641046787,-500.0,0.0002,2]
[328632577,1717641046796,-500.0,0.0002,2]
[328632579,1717641046804,-500.0,0.0002,2]
[328632580,1717641046813,-500.0,0.0002,2]
[328632582,1717641046823,-500.0,0.0002,2]
[328632583,1717641046832,-3000.0,0.0002004,2]
[328632584,1717641046841,-226.57668191,0.000201,2]
[328632585,1717641046850,-1000.0,0.00020269,2]
[328632586,1717641046860,-168.6,0.00020466,3]
[328632587,1717641046869,-150.0,0.000205,2]
[328632588,1717641046878,-150.0,0.000205,2]
[328632589,1717641046887,-171.12,0.00020548,2]
[328632590,1717641046897,-1096.91,0.00020823,2]
[328632591,1717641046906,-1400.0,0.000209,7]
[328632592,1717641046915,-790.0,0.00021,2]
[328632593,1717641046923,-150.0,0.00021,2]
[328632594,1717641046933,-150.0,0.00021,2]
[328632595,1717641046942,-15899.50034273,0.00021173,2]
[328632596,1717641046951,-2414.0,0.000212,2]
[328632597,1717641046961,-3372.74,0.0002137,2]
[328632598,1717641046970,-24688.75,0.0002137,2]
[328632599,1717641046979,-2776.23,0.000214,2]
[328632600,1717641046988,-3334.23,0.000214,2]
[328632601,1717641046997,-168.6,0.0002142,3]
[328632602,1717641047007,-150.0,0.000215,3]
[328632603,1717641047016,-150.0,0.000215,3]
[328632604,1717641047026,-2403.0,0.000217,2]
[328632605,1717641047035,-446.0,0.000217,2]
[328632606,1717641047044,-165.0,0.000217,2]
[328632607,1717641047053,-150.577,0.000217,2]
[328632608,1717641047062,-808.0,0.000217,2]
[328632609,1717641047071,-1304.0,0.000217,2]
[328632610,1717641047079,-216.0,0.000217,2]
[328632611,1717641047088,-150.496,0.000217,2]
[328632612,1717641047098,-3240.069,0.000217,2]
[328632613,1717641047107,-545.0,0.000217,2]
[328632614,1717641047117,-151.0,0.000217,2]
[328632615,1717641047126,-5151.0,0.000217,2]
[328632616,1717641047135,-290.0,0.000217,2]
[328632617,1717641047144,-358.0,0.000217,2]
[328632618,1717641047152,-977.0,0.000217,2]
[328632619,1717641047162,-18039.18,0.000217,2]
[328632620,1717641047171,-1471.0,0.000217,2]
[328632621,1717641047180,-151.0,0.000217,2]
[328632622,1717641047189,-151.0,0.000217,2]
[328632623,1717641047198,-166.56017299,0.000219,2]
[328632624,1717641047208,-1000.0,0.000219,2]
[328632625,1717641047217,-312.98928866,0.000219,2]
[328632626,1717641047226,-190.03612732,0.000219,2]
[328632627,1717641047235,-230.98,0.00021918,2]
[328632628,1717641047244,-250.0,0.00021918,2]
[328632629,1717641047254,-789.50234265,0.00022,2]
[328632630,1717641047263,-240.31286214,0.00022,2]
[328632631,1717641047272,-1061.45932753,0.00022,2]
[328632632,1717641047281,-150.0,0.00022,3]
[328632633,1717641047290,-150.0,0.00022,3]
[328632634,1717641047299,-225.37795035,0.0002211,2]
[328632635,1717641047309,-168.6,0.00022373,3]
[328632636,1717641047318,-500.0,0.00022443,2]
[328632637,1717641047327,-2441.73087864,0.00022454,3]
[328632638,1717641047337,-2441.73087865,0.00022454,3]
[328632639,1717641047346,-22534.5484955,0.000225,2]
[328632640,1717641047355,-150.0,0.000225,3]
[328632641,1717641047364,-150.0,0.000225,3]
[328632642,1717641047373,-151.26,0.00022603,2]
[328632643,1717641047382,-175.81,0.00022603,2]
[328632644,1717641047391,-15899.50034273,0.00022627,2]
[328632645,1717641047401,-500.0,0.00022991,2]
[328632646,1717641047410,-149140.48352413,0.00023,2]
[328632647,1717641047419,-151.0,0.00023,7]
[328632648,1717641047428,-151.0,0.00023,7]
[328632649,1717641047437,-150.0,0.00023,3]
[328632650,1717641047447,-150.0,0.00023,3]
[328632651,1717641047456,-1096.91,0.00023087,2]
[328632652,1717641047466,-150.22,0.000233,2]
[328632653,1717641047475,-2776.23,0.000233,2]
[328632654,1717641047484,-3334.23,0.000233,2]
[328632655,1717641047493,-168.6,0.00023326,3]
[328632656,1717641047502,-150.0,0.000235,3]
[328632657,1717641047513,-150.0,0.000235,3]
[328632658,1717641047522,-500.0,0.00023539,2]
[328632659,1717641047531,-152.30789155,0.00023599,2]
[328632660,1717641047540,-78589.89683238,0.000236,2]
[328632661,1717641047550,-2168.31080612,0.00023713,2]
[328632662,1717641047561,-534.42386632,0.00023713,2]
[328632663,1717641047571,-8237.88928149,0.00023713,2]
[328632664,1717641047580,-2100.0,0.00023813,2]
[328632665,1717641047589,-1300.0,0.00023813,2]
[328632666,1717641047599,-150.0,0.00024,2]
[328632667,1717641047608,-150.0,0.00024,4]
[328632668,1717641047618,-150.0,0.00024,4]
[328632669,1717641047628,-15899.50034273,0.00024082,2]
[328632670,1717641047640,-500.0,0.00024087,2]
[328632671,1717641047650,-152.0,0.00024139,3]
[328632672,1717641047660,-180.0,0.0002423,2]
[328632673,1717641047669,-168.6,0.0002428,5]
[328632674,1717641047678,-153.100255,0.00024361,7]
[328632675,1717641047687,-151.0,0.00024361,7]
[328632676,1717641047696,-212.923591,0.00024361,7]
[328632677,1717641047705,-212.923591,0.00024361,7]
[328632678,1717641047714,-2100.0,0.00024361,2]
[328632679,1717641047723,-1300.0,0.00024361,2]
[328632680,1717641047733,-282.94,0.00024384,2]
[328632681,1717641047743,-175.05,0.00024384,2]
[328632682,1717641047752,-294.83,0.00024384,2]
[328632683,1717641047761,-161.86,0.00024384,2]
[328632684,1717641047772,-175.406325,0.00024384,2]
[328632685,1717641047781,-561.05496254,0.0002445,2]
[328632686,1717641047791,-283.35606233,0.000245,2]
[328632687,1717641047800,-150.0,0.000245,4]
[328632688,1717641047809,-150.0,0.000245,4]
[328632689,1717641047818,-166.56017299,0.00024567,2]
[328632690,1717641047828,-152.0,0.00024581,4]
[328632691,1717641047837,-151.0,0.00024658,7]
[328632692,1717641047846,-2403.0,0.000247,2]
[328632693,1717641047855,-444.594,0.000247,2]
[328632694,1717641047864,-154.196,0.000247,2]
[328632695,1717641047873,-150.0,0.000247,2]
[328632696,1717641047882,-808.0,0.000247,2]
[328632697,1717641047891,-1304.0,0.000247,2]
[328632698,1717641047901,-216.0,0.000247,2]
[328632699,1717641047910,-545.0,0.000247,2]
[328632700,1717641047919,-5147.504,0.000247,2]
[328632701,1717641047928,-282.485,0.000247,2]
[328632702,1717641047937,-329.955,0.000247,2]
[328632703,1717641047946,-973.466,0.000247,2]
[328632704,1717641047955,-250.0,0.000247,7]
[328632705,1717641047965,-2776.23,0.000247,2]
[328632706,1717641047974,-3334.23,0.000247,2]
[328632707,1717641047983,-151.0,0.000247,7]
[328632708,1717641047993,-899.0,0.000247,2]
[328632709,1717641048002,-151.0,0.00024798,7]
[328632710,1717641048011,-151.0,0.00024798,7]
[328632711,1717641048021,-205.554543,0.00024798,7]
[328632712,1717641048030,-191.645502,0.00024798,7]
[328632713,1717641048039,-228.977933,0.00024798,7]
[328632714,1717641048048,-151.0,0.00024798,7]
[328632715,1717641048057,-191.645502,0.00024798,7]
[328632716,1717641048066,-151.0,0.00024798,7]
[328632717,1717641048075,-154.484505,0.00024798,7]
[328632718,1717641048084,-488.164556,0.00024798,7]
[328632719,1717641048093,-153.438249,0.00024798,7]
[328632720,1717641048102,-488.164556,0.00024798,7]
[328632721,1717641048111,-151.0,0.00024798,7]
[328632722,1717641048120,-160.636081,0.00024798,7]
[328632723,1717641048129,-151.0,0.00024798,7]
[328632724,1717641048138,-151.0,0.00024798,7]
[328632725,1717641048148,-151.0,0.00024798,7]
[328632726,1717641048157,-151.0,0.00024798,7]
[328632727,1717641048166,-154.489972,0.00024799,7]
[328632728,1717641048175,-151.0,0.00024799,7]
[328632729,1717641048184,-843.06550992,0.00024799,2]
[328632730,1717641048193,-843.06550992,0.00024799,2]
[328632731,1717641048202,-843.06550992,0.00024799,2]
[328632732,1717641048211,-843.06550992,0.00024799,2]
[328632733,1717641048221,-843.06550992,0.00024799,2]
[328632734,1717641048230,-843.06550992,0.00024799,2]
[328632735,1717641048239,-843.06550992,0.00024799,2]
[328632736,1717641048249,-6818.9463535,0.000249,2]
[328632737,1717641048258,-1519.0,0.000249,2]
[328632738,1717641048267,-151.0,0.00024909,7]
[328632739,1717641048276,-151.0,0.00024909,7]
[328632740,1717641048286,-2100.0,0.00024909,2]
[328632741,1717641048294,-1300.0,0.00024909,2]
[328632742,1717641048303,-177.31979761,0.00024999,2]
[328632743,1717641048313,-155.0,0.00025,2]
[328632744,1717641048322,-1345.698895,0.00025,3]
[328632745,1717641048331,-158.60373146,0.00025,2]
[328632746,1717641048340,-713.68646057,0.00025,2]
[328632747,1717641048349,-8153.91210017,0.00025,2]
[328632748,1717641048358,-160.0,0.00025,2]
[328632749,1717641048367,-225.91804202,0.00025,2]
[328632750,1717641048376,-327.23291448,0.00025,2]
[328632751,1717641048385,-326.96724107,0.00025,2]
[328632752,1717641048394,-932.19794882,0.00025,2]
[328632753,1717641048403,-1281.46545707,0.00025,2]
[328632754,1717641048412,-155.51443355,0.00025,2]
[328632755,1717641048421,-1250.0,0.00025,2]
[328632756,1717641048431,-152.0,0.00025023,5]
[328632757,1717641048439,-500.0,0.00025183,2]
[328632758,1717641048449,-500.0,0.00025183,2]
[328632759,1717641048458,-500.0,0.00025183,2]
[328632760,1717641048467,-1000.0,0.00025205,2]